Cogmind - Beta 17 @@@ ROGUE MODE // 2026.07.28 @ 19:32:46 Player: 4R-ZE3 Result: Destroyed by G-50 Soldier with Heavy Laser Performance ------------- Evolutions (4) 2000 Regions Visited (8) 1600 Robots Destroyed (81) 405 Value Destroyed (2559) 2559 Prototype IDs (15) 300 Alien Tech Used (0) 0 Bonus (1252) 1252 TOTAL SCORE: 8116 Bonus ------- Follower Combat Kills 452 Registered with UFD 300 Met Optimus in HQ 500 Cogmind --------- Core Integrity 0/850 Matter 275/300 Energy 480/480 System Corruption 19% Temperature Cool (25) Movement Walking (187) Ox1 Location -6/Lower Caves Parts ------- > --- POWER (2) -------- Improved Deuterium Engine Reinforced Deuterium Engine > --- PROPULSION (5) --- Carbon-fiber Leg Flexi-carbon Leg Armored Leg Multireflex Exoskeleton > --- UTILITY (6) ------ Large Storage Unit Advanced Sensor Array Armor Integrity Analyzer Reactive Plating Reactive Plating Reactive Plating > --- WEAPON (2) ------- Long-range Missile Launcher Companion Sword > --- INVENTORY (15) --- Carbon-fiber Leg VTOL Module Improved Flight Unit Improved Flight Unit Terrain Scan Processor Reactive Plating Reactive Plating Reactive Plating Hacking Suite Peak State ------------ > --- POWER ------------ Improved Deuterium Engine Reinforced Deuterium Engine > --- PROPULSION ------- Carbon-fiber Leg Flexi-carbon Leg Armored Leg Multireflex Exoskeleton > --- UTILITY ---------- Large Storage Unit Advanced Sensor Array Armor Integrity Analyzer Reactive Plating Reactive Plating Reactive Plating > --- WEAPON ----------- Long-range Missile Launcher Companion Sword > --- INVENTORY -------- Carbon-fiber Leg VTOL Module Improved Flight Unit Improved Flight Unit Terrain Scan Processor Reactive Plating Reactive Plating Reactive Plating Hacking Suite [Rating: 65] Favorites ----------- Power Improved Ion Engine Engine Improved Ion Engine Power Core Fusion Compressor Propulsion Light Treads Treads Light Treads Leg Flexi-carbon Leg Wheel Wheel Flight Unit Improved Flight Unit Utility Large Storage Unit Device Improved Terrain Scanner Storage Large Storage Unit Processor Terrain Scan Processor Hackware Hacking Suite Protection Heavy Armor Plating Weapon Heavy Assault Rifle Energy Gun Improved Lightning Gun Ballistic Gun Heavy Assault Rifle Launcher Long-range Missile Launcher Impact Weapon Hammer Slashing Weapon Companion Sword Build | -11 -10 -9 -9 -9 -9 -6 -6 -6 ------- Run | Yrd Mat Mat Sto Rec Scr Fac Low Low Slots Evolved 8 | . . 2 . . . 6 . . Power 1 | . . . . . . 1 . . Propulsion 3 | . . 1 . . . 2 . . Utility 4 | . . 1 . . . 3 . . Weapon . | . . . . . . . . . Parts Attached 96 | 6 6 17 21 1 6 22 15 2 Power 13 | 1 . 2 1 . 1 5 2 1 Engine 12 | 1 . 2 1 . 1 4 2 1 Core 1 | . . . . . . 1 . . Reactor . | . . . . . . . . . Propulsion 35 | 2 2 6 10 . 2 8 5 . Treads 20 | . 2 6 9 . 2 1 . . Leg 9 | . . . . . . 4 5 . Wheel 5 | 2 . . . . . 3 . . Hover . | . . . . . . . . . Flight 1 | . . . 1 . . . . . Utility 29 | 2 1 3 5 1 . 9 7 1 Device 9 | 1 . . 2 . . 3 2 1 Storage 3 | 1 1 . 1 . . . . . Processor 5 | . . . . . . 2 3 . Hackware 1 | . . . . . . 1 . . Protection 11 | . . 3 2 1 . 3 2 . Artifact . | . . . . . . . . . Weapon 19 | 1 3 6 5 . 3 . 1 . Energy Gun 1 | . . . 1 . . . . . Energy Cannon . | . . . . . . . . . Ballistic Gun 13 | 1 1 5 4 . 2 . . . Ballistic Cannon . | . . . . . . . . . Launcher 3 | . 1 1 . . . . 1 . Special Weapon . | . . . . . . . . . Impact Weapon 1 | . 1 . . . . . . . Slashing Weapon 1 | . . . . . 1 . . . Piercing Weapon . | . . . . . . . . . Special Melee Weapon . | . . . . . . . . . Unidentified Prototypes 6 | . . . 3 . 1 2 . . Parts Lost 37 | . . 6 2 . . 14 15 . Power 7 | . . 1 . . . 3 3 . Propulsion 13 | . . 1 . . . 7 5 . Utility 12 | . . 1 . . . 4 7 . Weapon 5 | . . 3 2 . . . . . Highest Loss Streak 12 | . . 3 2 . . 12 7 . To Critical Strikes . | . . . . . . . . . Average Backups 12 | 1 8 12 13 13 13 12 12 9 Power . | . 1 . . . . . . . Propulsion 3 | 1 3 4 4 3 3 3 3 4 Utility 3 | . . 1 2 2 2 3 7 4 Weapon 5 | . 3 5 6 7 7 5 . . Tool/Special . | . . . . . . . . . Unused Backups 21 | . 1 2 5 1 . 4 1 7 Power . | . . . . . . . . . Propulsion 8 | . 1 . 3 . . 1 . 3 Utility 6 | . . . . 1 . . 1 4 Weapon 7 | . . 2 2 . . 3 . . Tool/Special . | . . . . . . . . . Average Slot Usage (%) 83 | . 97 93 89 86 82 65 75 83 Engine 9 | . 14 10 11 11 11 5 3 9 Treads 24 | . 20 32 33 33 33 10 . . Leg 5 | . . . . . . 13 24 26 Device 4 | . 14 7 3 . . 5 6 5 Storage 9 | . 14 11 11 11 11 6 6 6 Processor 2 | . . . . . . 5 12 6 Protection 8 | . . 9 9 11 11 5 6 20 Ballistic Gun 12 | . 19 21 20 20 10 . . . Slashing Weapon 2 | . . . . . 5 6 6 6 Peak Build Rating 65 | 8 10 17 22 20 24 60 61 65 Average Rating 26 | 4 9 13 17 19 21 40 54 59 On Entrance 22 | . 8 10 16 20 14 24 60 54 Avg Prop Armor Cover (%) 17 | . . . . . . 20 14 . Naked Turns . | . . . . . . . . . Heaviest Build 88 | 11 29 45 48 48 48 62 87 88 Greatest Support 105 | 26 40 60 60 60 65 105 89 87 Greatest Overweight (x) 3 | . . . . . . 3 1 1 Average Overweight (x) . | . . . . . . . . . Largest Inventory Capacity 15 | 8 15 15 15 15 15 15 15 15 Average Capacity 14 | 7 11 15 15 15 15 15 15 15 Most Carried 15 | 5 12 15 15 15 15 15 15 10 Average Carried 13 | 1 8 13 14 14 13 12 13 9 Final Capacity 15 | 8 15 15 15 15 15 15 15 15 Final Carried 15 | 5 12 15 15 13 15 12 9 9 Class Distribution -------------------- 43% | Commander-Mutant 29% | Mutant 26% | Scavenger-Mutant Dominant Class ---------------- Mutant | -10/Materials Mutant | -9/Materials Scavenger-Mutant | -9/Storage Commander-Mutant | -9/Recycling Commander-Mutant | -9/Scraptown Mutant | -6/Factory Mutant | -6/Lower Caves Scavenger-Mutant | -6/Lower Caves Resources | -11 -10 -9 -9 -9 -9 -6 -6 -6 ----------- Run | Yrd Mat Mat Sto Rec Scr Fac Low Low Matter Collected 2170 | 128 212 518 589 24 70 254 346 29 Remotely . | . . . . . . . . . Salvage Created 3413 | 24 230 815 965 . . 545 762 72 Parts 192 | 3 21 47 61 . . 31 25 4 Haulers Intercepted 5 | . 2 2 . . . 1 . . Recyclers Shooed 3 | . . 3 . . . . . . Parts Field Recycled . | . . . . . . . . . Retrieved Matter . | . . . . . . . . . Parts Self-Destructed 20 | . . . . . . . 16 4 Prevented . | . . . . . . . . . Parts Restored . | . . . . . . . . . Kills | -11 -10 -9 -9 -9 -9 -6 -6 -6 ------- Run | Yrd Mat Mat Sto Rec Scr Fac Low Low Combat Hostiles Destroyed 64 | . 6 17 20 . . 7 13 1 Melee 18 | . . . . . . 7 10 1 Guns 39 | . 2 17 20 . . . . . AOE 7 | . 4 . . . . . 3 . Classes Destroyed 15 | 1 3 4 1 . . 4 2 . Worker 3 | . . 1 . . . 2 . . Builder 1 | . . . . . . 1 . . Tunneler 1 | 1 . . . . . . . . Hauler 5 | . 2 2 . . . 1 . . Recycler 2 | . . 1 1 . . . . . Operator 3 | . . . 3 . . . . . Swarmer 16 | . 3 6 4 . . . 3 . Grunt 22 | . 3 6 6 . . . 7 . Brawler 3 | . . 2 . . . . 1 . Duelist 2 | . . . . . . . 2 . Sentry 16 | . . 3 10 . . 1 1 1 Hunter 3 | . . . . . . 3 . . Programmer 2 | . . . . . . 2 . . Behemoth 1 | . . . . . . 1 . . Mutant 1 | . . . . . . . 1 . Best Kill Streak 7 | 1 6 5 6 . . 4 7 1 Combat Bots Only 7 | . 6 4 6 . . 2 7 1 Max Kills in Single Turn 3 | 1 2 1 1 . . 1 3 1 Gunslinging . | . . . . . . . . . Exploded 3 | . 2 . . . . . 3 . Melee 1 | . . . . . . 1 1 1 Uniques/NPCs Destroyed . | . . . . . . . . . Combat | -11 -10 -9 -9 -9 -9 -6 -6 -6 -------- Run | Yrd Mat Mat Sto Rec Scr Fac Low Low Hostile Shots Fired 714 | . 20 191 83 12 . 238 151 19 Missed 224 | . 8 64 19 2 . 82 41 8 Deflected 1 | . . . . . . . 1 . Hits 490 | . 12 127 64 10 . 156 110 11 Melee 15 | . . 8 . . . . 7 . Projectile 475 | . 12 119 64 10 . 156 103 11 AOE 6 | . . . . 6 . . . . Critical Strikes 14 | . . 6 2 . . 3 3 . Damage Taken 7011 | . 115 1542 788 330 . 2448 1709 79 Core 1139 | . 45 156 50 38 . 484 342 24 Absorbed by Shields . | . . . . . . . . . Redirected to Shielding 51 | . . 51 . . . . . . Ignored by Resistances 86 | . . . . . . 49 26 11 Core Remaining (%) 73 | 100 82 . . . 39 . . . Volleys Fired 170 | 1 20 84 58 4 . . 2 1 Largest 2 | 1 2 2 2 2 . . 1 1 Hottest 56 | 20 50 56 46 46 . . 43 43 Shots Fired 321 | 1 28 166 115 8 . . 2 1 Gun 313 | 1 25 164 115 8 . . . . Cannon . | . . . . . . . . . Launcher 8 | . 3 2 . . . . 2 1 Special . | . . . . . . . . . Kinetic 313 | 1 25 164 115 8 . . . . Thermal . | . . . . . . . . . Explosive 8 | . 3 2 . . . . 2 1 Electromagnetic . | . . . . . . . . . Robot Hit Streak 47 | 1 6 15 47 7 . . 9 . Robot Miss Streak 7 | . 6 7 3 1 . . . . Penetration Max . | . . . . . . . . . Secondary Targets 8 | . . 5 3 . . . . . Max Gunslinging Chain 1 | . . 1 1 . . . . . Shots Hit Robots 309 | 1 14 107 95 7 . 37 47 1 Core Hits 141 | 1 15 48 42 1 . 11 19 4 Critical Kills . | . . . . . . . . . Critical Parts Destroyed 1 | . . . . 1 . . . . Critical Strikes 4 | . . . . 2 . 2 . . Destroy 2 | . . . . 2 . . . . Melee Attacks 113 | . 1 1 3 . . 51 55 2 Impact 5 | . 1 1 3 . . . . . Slashing 108 | . . . . . . 51 55 2 Piercing . | . . . . . . . . . Sneak Attacks 14 | . . . . . . 5 9 . Combat Hostiles . | . . . . . . . . . Follow-up Attacks 1 | . . . . . . . 1 . Martial Strikes 4 | . . . . . . . 4 . Damage Inflicted 7273 | 12 366 1206 1185 118 . 1726 2440 220 Guns 2603 | 12 156 1132 1185 118 . . . . Cannons . | . . . . . . . . . Explosions 976 | . 210 74 . . . . 519 173 Melee 3694 | . . . . . . 1726 1921 47 Ramming . | . . . . . . . . . Kinetic 2603 | 12 156 1132 1185 118 . . . . Thermal . | . . . . . . . . . Explosive 976 | . 210 74 . . . . 519 173 Electromagnetic . | . . . . . . . . . Impact . | . . . . . . . . . Slashing 3694 | . . . . . . 1726 1921 47 Piercing . | . . . . . . . . . Highest Corruption 19 | . 4 . . 2 . 1 19 19 Average Corruption 5 | . 3 . . 2 . 1 7 19 Corruption Purged . | . . . . . . . . . Corruption Blocked . | . . . . . . . . . Effects 33 | . 5 . . 4 . 2 18 4 Message Errors 9 | . . . . 1 . 1 6 1 Matter Fused 4 | . 1 . . . . 1 2 . Heat Flow Errors 2 | . . . . 1 . . 1 . Energy Discharges 5 | . 1 . . 1 . . 2 1 Parts Rejected 1 | . . . . . . . 1 . Parts Fused 1 | . 1 . . . . . . . Data Loss (minor) 5 | . 1 . . . . . 3 1 Data Loss (major) 5 | . 1 . . 1 . . 2 1 Alerts 1 | . . . . . . . 1 . Overload Shots . | . . . . . . . . . Overflow Damage 330 | . . . . . . 166 164 . Projectiles . | . . . . . . . . . Explosions . | . . . . . . . . . Melee 330 | . . . . . . 166 164 . Knockbacks . | . . . . . . . . . Impact . | . . . . . . . . . Kinetic . | . . . . . . . . . Secondary . | . . . . . . . . . Self-Inflicted Damage 148 | . . 12 . . . . 136 . Shots 3 | . . 1 . . . . 2 . Rammed . | . . . . . . . . . Targets Rammed . | . . . . . . . . . Kicked . | . . . . . . . . . Crushed . | . . . . . . . . . Highest Temperature 468 | . 9 154 35 122 . 468 156 16 Average Temperature 48 | . 4 48 9 66 . 238 67 8 Received Heat Transfer 1413 | . 39 510 267 . . 309 261 27 Siege Activations . | . . . . . . . . . Martial Activations 1 | . . . . . . . 1 . Total Turns 124 | . . . . . . . 124 . Longest Duration 124 | . . . . . . . 124 . Shielding Activations . | . . . . . . . . . Robots Disrupted . | . . . . . . . . . Combat Hostiles . | . . . . . . . . . Robots Corrupted . | . . . . . . . . . Combat Hostiles . | . . . . . . . . . Parts Fried . | . . . . . . . . . Impact Corruptions . | . . . . . . . . . Robots Melted . | . . . . . . . . . Combat Hostiles . | . . . . . . . . . Parts Melted . | . . . . . . . . . Heat Transferred . | . . . . . . . . . Parts Sabotaged . | . . . . . . . . . Parts Stolen . | . . . . . . . . . Parts Stripped . | . . . . . . . . . Power Chain Reactions . | . . . . . . . . . Alert | -11 -10 -9 -9 -9 -9 -6 -6 -6 ------- Run | Yrd Mat Mat Sto Rec Scr Fac Low Low Maximum Alert Level 1 | . . . 1 . . . . . Low Security (%) 85 | 100 100 100 43 100 . 100 . . Level 1 14 | . . . 56 . . . . . Level 2 . | . . . . . . . . . Level 3 . | . . . . . . . . . Level 4 . | . . . . . . . . . Level 5 . | . . . . . . . . . High Security . | . . . . . . . . . Max Security . | . . . . . . . . . Peak Influence 381 | 5 158 185 381 141 . 116 . . Initial 141 | . . 26 75 141 . . . . Average 87 | . 89 52 225 27 . 21 . . Influence Increases 2373 | 5 214 472 774 212 . 401 275 20 Destroy 0b10 Robot/C 1500 | . 120 340 440 120 . 220 240 20 Destroy 0b10 Robot/NC 100 | 5 10 20 20 20 . 25 . . Destroy Leader 332 | . 34 54 140 . . 74 30 . Allied During Kill 141 | . . . 45 59 . 32 5 . Successful Hack 42 | . 17 5 7 13 . . . . Disable Machine 60 | . 15 . 30 . . 15 . . Destroy Structure 63 | . 18 23 2 . . 20 . . Lose Combat Pursuer 135 | . . 30 90 . . 15 . . Influence Decreases 2373 | 5 150 357 590 575 . 401 275 20 Entered New Map 364 | . . 38 104 222 . . . . Time Decay 1477 | 5 150 267 446 225 . 226 138 20 Lost Part 241 | . . 52 20 . . 72 97 . Lost Ally 291 | . . . 20 128 . 103 40 . Squads Dispatched 10 | . 1 1 3 . . 5 . . Investigation 2 | . . . . . . 2 . . Extermination 1 | . . . . . . 1 . . Reinforcement 7 | . 1 1 3 . . 2 . . Assault . | . . . . . . . . . Garrison . | . . . . . . . . . Intercept . | . . . . . . . . . Searches Triggered . | . . . . . . . . . Construction Impeded . | . . . . . . . . . Haulers Reinforced 1 | . . . . . . 1 . . Active Scanning Responses . | . . . . . . . . . Cargo Convoy Interrupts . | . . . . . . . . . Stealth | -11 -10 -9 -9 -9 -9 -6 -6 -6 --------- Run | Yrd Mat Mat Sto Rec Scr Fac Low Low Distress Signals 9 | . 1 4 1 1 . 2 . . Communications Jammed . | . . . . . . . . . Distress Signals . | . . . . . . . . . Times Spotted 109 | . 13 26 28 5 . 19 14 4 Peak Tracking Total 8 | . 8 8 8 3 . 4 7 4 Tactical Retreats 5 | . . 1 3 . . 1 . . Traps | -11 -10 -9 -9 -9 -9 -6 -6 -6 ------- Run | Yrd Mat Mat Sto Rec Scr Fac Low Low Traps Triggered 4 | . 4 . . . . . . . Indirectly . | . . . . . . . . . Trap Hack Attempts . | . . . . . . . . . Triggered . | . . . . . . . . . Disarmed . | . . . . . . . . . Reprogrammed . | . . . . . . . . . Reused . | . . . . . . . . . Traps Extracted . | . . . . . . . . . Installed . | . . . . . . . . . Triggered . | . . . . . . . . . Machines | -11 -10 -9 -9 -9 -9 -6 -6 -6 ---------- Run | Yrd Mat Mat Sto Rec Scr Fac Low Low Machines Disabled 5 | . 1 . 2 . . 1 1 . Max in Single Turn 1 | . 1 . 1 . . . 1 . Machines Repaired . | . . . . . . . . . Machines Dismantled . | . . . . . . . . . Machines Sabotaged . | . . . . . . . . . Overloaded Fab Kills . | . . . . . . . . . Hacking | -11 -10 -9 -9 -9 -9 -6 -6 -6 --------- Run | Yrd Mat Mat Sto Rec Scr Fac Low Low Machines Accessed 38 | . 3 6 6 11 6 6 . . Terminals 19 | . 2 4 5 4 . 4 . . Fabricators . | . . . . . . . . . Repair Stations . | . . . . . . . . . Recycling Units 12 | . 1 1 1 7 . 2 . . Scanalyzers 1 | . . 1 . . . . . . Garrison Access . | . . . . . . . . . Total Hacks 92 | . 9 16 9 18 31 9 . . Successful 56 | . 4 7 4 8 31 2 . . Failed 36 | . 5 9 5 10 . 7 . . Catastrophic 8 | . . 3 2 1 . 2 . . Database Lockouts . | . . . . . . . . . Manual 24 | . 4 6 4 4 . 6 . . Terminals 32 | . 6 8 7 6 . 5 . . Fabricators . | . . . . . . . . . Repair Stations . | . . . . . . . . . Recycling Units 24 | . 3 3 2 12 . 4 . . Scanalyzers 5 | . . 5 . . . . . . Garrison Access . | . . . . . . . . . Terminal Hacks 42 | . 3 2 3 3 31 . . . Record 29 | . . . . . 29 . . . Robot Analysis 3 | . 2 . . 1 . . . . Open Door 4 | . . . 3 . 1 . . . Branch Access Points 1 | . . 1 . . . . . . Unreport Threat 1 | . . . . 1 . . . . Zone Layout 3 | . 1 1 . 1 . . . . Proto ID Catalog 1 | . . . . . 1 . . . Fabricator Hacks . | . . . . . . . . . Repair Station Hacks . | . . . . . . . . . Recycling Unit Hacks 8 | . 1 1 1 5 . . . . Retrieve Components 8 | . 1 1 1 5 . . . . Scanalyzer 4 | . . 4 . . . . . . Retrieve Study 4 | . . 4 . . . . . . Garrison Access Hacks . | . . . . . . . . . Unauthorized Hacks 2 | . . . . . . 2 . . Terminals . | . . . . . . . . . Fabricators . | . . . . . . . . . Repair Stations . | . . . . . . . . . Recycling Units 2 | . . . . . . 2 . . Fedlink 2 | . . . . . . 2 . . Scanalyzers . | . . . . . . . . . Garrison Access . | . . . . . . . . . Data Cores Recovered 1 | . . . 1 . . . . . Used . | . . . . . . . . . Hacking Detections 22 | . 1 4 5 7 . 5 . . Full Trace Events . | . . . . . . . . . Feedback Events . | . . . . . . . . . Feedback Blocked . | . . . . . . . . . Robot Schematics Acquired . | . . . . . . . . . Robots Built . | . . . . . . . . . Authchips . | . . . . . . . . . Time . | . . . . . . . . . Total Robot Build Rating . | . . . . . . . . . Part Schematics Acquired . | . . . . . . . . . Parts Built . | . . . . . . . . . Authchips . | . . . . . . . . . Time . | . . . . . . . . . Total Part Build Rating . | . . . . . . . . . Part Studies Acquired 4 | . . 4 . . . . . . Parts Repaired . | . . . . . . . . . Time . | . . . . . . . . . Parts Recycled . | . . . . . . . . . Recycled Matter . | . . . . . . . . . Retrieved Matter . | . . . . . . . . . Retrieved Components 33 | . 5 9 10 9 . . . . Parts Scanalyzed . | . . . . . . . . . Part Schematics Acquired . | . . . . . . . . . Parts Damaged . | . . . . . . . . . Bothacking | -11 -10 -9 -9 -9 -9 -6 -6 -6 ------------ Run | Yrd Mat Mat Sto Rec Scr Fac Low Low Used RIF Installer . | . . . . . . . . . Robots Hacked . | . . . . . . . . . Non-combat . | . . . . . . . . . Combat . | . . . . . . . . . Robot Hacks Applied . | . . . . . . . . . Relay Couplers Released . | . . . . . . . . . Fabnet Peak Effective % . | . . . . . . . . . Robots Rewired 19 | . . . . 15 . . 4 . Allies Hacked . | . . . . . . . . . Hacks Repelled . | . . . . . . . . . Allies | -11 -10 -9 -9 -9 -9 -6 -6 -6 -------- Run | Yrd Mat Mat Sto Rec Scr Fac Low Low Total Allies 29 | . . . 10 15 . . 4 . Largest Group 15 | . . . 10 15 14 14 4 . Highest-Rated Group 161 | . . . 88 161 151 151 120 . Highest-Rated Ally 34 | . . . 16 34 34 34 30 . Initial UFD Resources 36 | . . . . . . 22 36 36 Total Orders 19 | . . . 4 . 15 . . . STAY 15 | . . . . . 15 . . . EXPLORE 4 | . . . 4 . . . . . Ally Attacks 62 | . . . 13 24 . 18 7 . Total Damage 1514 | . . . 128 569 . 778 39 . Kills 21 | . . . 2 11 . 8 . . Allies Corrupted . | . . . . . . . . . Allies Melted 1 | . . . . . . 1 . . Intel | -11 -10 -9 -9 -9 -9 -6 -6 -6 ------- Run | Yrd Mat Mat Sto Rec Scr Fac Low Low Active Infowar (turns) 1347 | 5 369 516 . . . 2 336 119 Sensors 119 | . . . . . . . . 119 Terrain 1226 | 5 369 516 . . . . 336 . Traps 2 | . . . . . . 2 . . Robot Analysis Total 3 | . 2 . . 1 . . . . Derelict Logs Recovered 1 | . . . . . . . 1 . Drone Launches 4 | . . . 4 . . . . . Drone Recoveries 2 | . . . 2 . . . . . Exploration | -11 -10 -9 -9 -9 -9 -6 -6 -6 ------------- Run | Yrd Mat Mat Sto Rec Scr Fac Low Low Turns Passed 6285 | 60 369 807 1103 910 1204 996 705 131 Spaces Moved 3258 | 49 194 317 465 430 744 589 370 100 Core 1 | 1 . . . . . . . . Treads 2293 | . 135 317 465 430 744 202 . . Legs 841 | . . . . . . 371 370 100 Wheels 123 | 48 59 . . . . 16 . . Hover . | . . . . . . . . . Flight . | . . . . . . . . . Fastest Speed 50 | 50 90 160 160 160 155 85 115 117 Average Speed 146 | 89 138 160 160 160 155 129 127 119 Slowest Speed 234 | 100 160 160 160 160 160 200 234 187 Overloaded Moves 32 | . . . . . . . 32 . Propulsion Burnouts . | . . . . . . . . . Robots Hopped . | . . . . . . . . . Potential Cave-ins . | . . . . . . . . . Cave-ins Triggered . | . . . . . . . . . Exploration Rate (%) 44 | 4 42 41 69 86 58 18 58 20 Regions Visited 8 Branch Regions 5 Pre-discovered Areas 1 | . . . . . . 1 . . Known Exits Taken 1 | . . 1 . . . . . . Unknown Exits Taken 7 | 1 1 . 1 1 1 1 1 . Scrap Searched 9 | . . . . . 5 . 3 1 Spaces Dug 2 | . . 1 . . . 1 . . Terrain Destroyed 85 | . 19 23 . . . 1 20 22 Melee 2 | . . 1 . . . 1 . . Projectile . | . . . . . . . . . AOE 83 | . 19 22 . . . . 20 22 Terrain Rammed . | . . . . . . . . . Walls Destroyed . | . . . . . . . . . Machines Disabled . | . . . . . . . . . Actions | -11 -10 -9 -9 -9 -9 -6 -6 -6 --------- Run | Yrd Mat Mat Sto Rec Scr Fac Low Low Total 4335 | 60 264 472 723 648 792 745 524 107 Wait 366 | . 32 26 127 60 38 60 23 . Move 3250 | 48 193 316 464 429 743 588 369 100 Hop . | . . . . . . . . . Pick Up 63 | 5 9 11 15 2 1 12 7 1 Fast Attach 42 | 6 . 4 5 . 1 15 10 1 Attach 30 | . 1 5 6 1 2 7 7 1 Detach 5 | . . . . 2 2 . 1 . Swap 43 | . 6 13 17 . 3 1 2 1 Drop 65 | . 2 12 28 5 2 11 5 . Fire 170 | 1 20 84 58 4 . . 2 1 Melee 108 | . 1 1 3 . . 51 50 2 Ram . | . . . . . . . . . Kick . | . . . . . . . . . Crush . | . . . . . . . . . Escape Stasis . | . . . . . . . . . Rewire 193 | . . . . 145 . . 48 . Trap . | . . . . . . . . . Miscellaneous . | . . . . . . . . . Route ------- -11/Scrapyard -10/Materials -9/Materials (discovered 3 exits: *Min x2 / *Sto) -9/Storage (discovered 2 exits: [*Mat] / *Rec) -9/Recycling (discovered 2 exits: [*Fac] / *Scr) -9/Scraptown -6/Factory -6/Lower Caves -6/Lower Caves History --------- Turn | Location | Event 12 | -11/Scrapyard | Discovered new exit (range 16) 61 | -11/Scrapyard | Entered Materials 62 | -10/Materials | Met a group of wandering Federalists 311 | -10/Materials | Build established: Mutant 356 | -10/Materials | Discovered new exit (range 17) 430 | -10/Materials | Entered another Materials area 430 | -9/Materials | Evolved 2 slots: Propulsion x1, Utility x1 736 | -9/Materials | Identified exit to Mines 736 | -9/Materials | Identified exit to Storage 907 | -9/Materials | Lost 3 parts (1p1u1w) 1237 | -9/Materials | Entered Storage 1345 | -9/Storage | Build established: Scavenger-Mutant 1814 | -9/Storage | Core integrity fell below 50% 1988 | -9/Storage | Discovered new exit (range 5) 2029 | -9/Storage | Assisted by bots powering up and referring to "LRC-V3" 2317 | -9/Storage | Used back door to open Recycling access 2317 | -9/Storage | Discovered new exit (range 5) 2321 | -9/Storage | Build established: Commander-Mutant 2340 | -9/Storage | Entered Recycling 2340 | -9/Recycling | Accompanied by 10 allies 2860 | -9/Recycling | Lost 7 allies 2973 | -9/Recycling | Discovered new exit (range 16) 3178 | -9/Recycling | Scanned before Scraplab entrance 3208 | -9/Recycling | Entered Scraplab 3221 | -9/Recycling | Discovered new exit (range 2) 3250 | -9/Recycling | Entered Scraptown 3250 | -9/Scraptown | Accompanied by 14 allies 3250 | -9/Scraptown | System corruption cleaned by C-Scrubber 3507 | -9/Scraptown | Visited Comm Corps 3576 | -9/Scraptown | Visited Fellowship of the Rings 3595 | -9/Scraptown | Heard Great Nut preacher, LISTEN AND RECITE! 3610 | -9/Scraptown | Visited Spacefarers 3627 | -9/Scraptown | Visited Cyclists 3645 | -9/Scraptown | Visited Awakened 3689 | -9/Scraptown | Visited Shadow of the Wyrm 3707 | -9/Scraptown | Visited UFD Registry 3707 | -9/Scraptown | Registered with UFD as "Microslasher" 3745 | -9/Scraptown | Visited Science Guys 3820 | -9/Scraptown | Visited Sword Containment 3836 | -9/Scraptown | Found Prototype Slashing Weapon 3836 | -9/Scraptown | Identified Companion Sword 3880 | -9/Scraptown | Visited Curators Association 3937 | -9/Scraptown | Visited Supply Room 3972 | -9/Scraptown | Visited Research Penetration Think Tank 4005 | -9/Scraptown | Visited Chapter 10 4034 | -9/Scraptown | Visited DA-N13 Charitable Foundation 4048 | -9/Scraptown | Found DCF Scrap (30 items) 4092 | -9/Scraptown | Visited Scrap Suit Storage 4117 | -9/Scraptown | Visited Modified Component R&D 4224 | -9/Scraptown | Discovered new exit (range 5) 4349 | -9/Scraptown | Met Optimus 4349 | -9/Scraptown | Accepted into 0bPrime 4454 | -9/Scraptown | Entered Factory 4454 | -6/Factory | Accompanied by 14 allies 4454 | -6/Factory | Evolved 6 slots: Power x1, Propulsion x2, Utility x3 4542 | -6/Factory | Loaded intel: 8 recycling unit locations 4628 | -6/Factory | Allied Derelicts emerged from ambush trap array 4651 | -6/Factory | Lost 7 allies 4777 | -6/Factory | Lost 10 allies 4802 | -6/Factory | Spotted B-75 Beast 4854 | -6/Factory | Destroyed B-75 Beast 4916 | -6/Factory | Lost 12 parts (3p7n2u) 5102 | -6/Factory | Build established: Mutant 5166 | -6/Factory | Learned location of Protoforge (-2) 5200 | -6/Factory | Core integrity fell below 50% 5429 | -6/Factory | Discovered new exit (range 12) 5450 | -6/Factory | Entered Lower Caves 5452 | -6/Lower Caves | Attracted the attention of an 0b10 checkpoint 5477 | -6/Lower Caves | Learned 8 Factory zone layouts 5573 | -6/Lower Caves | Attacked by a delusional Derelict stockpiling Unaware 5618 | -6/Lower Caves | Lost 3 parts (2p1n) 5854 | -6/Lower Caves | Core integrity fell below 20% 5902 | -6/Lower Caves | Lost 5 parts (1p2n2u) 5915 | -6/Lower Caves | Destroyed 7 combat bots 5975 | -6/Lower Caves | System corruption reached 10% 6016 | -6/Lower Caves | Lost 7 parts (2n5u) 6103 | -6/Lower Caves | Encountered a Warlord checkpoint 6142 | -6/Lower Caves | Discovered new exit (range 16) 6155 | -6/Lower Caves | Entered another Lower Caves area 6156 | -6/Lower Caves | Encountered a Warlord checkpoint 6201 | -6/Lower Caves | Attracted the attention of an 0b10 checkpoint 6286 | -6/Lower Caves | Destroyed by G-50 Soldier with Heavy Laser Last Messages --------------- it's probably closer to 100%." 06162_ ZR